bitfinex-derivatives/quotes_BTCF0:USTF0_20260221
["timestamp","ask_amount","ask_price","bid_price","bid_amount"]
[1771706402207,0.014608,68475.0,68469.0,0.014609]
[1771706402809,0.014608,68474.0,68469.0,0.014609]
[1771706404114,0.014608,68473.0,68468.0,0.014609]
[1771706404514,0.99387463,68499.0,68460.0,0.37640648]
[1771706404714,0.99387463,68499.0,68472.0,0.014608]
[1771706404715,0.014607,68480.0,68472.0,0.014608]
[1771706404914,0.014607,68478.0,68472.0,0.014608]
[1771706410223,0.28573504,68477.0,68445.0,0.36790801]
[1771706410528,0.014607,68478.0,68427.0,0.4382915]
[1771706410529,0.014618,68429.0,68427.0,0.4382915]
[1771706410711,0.0569208,68450.0,68428.0,0.4382915]
[1771706410910,0.014615,68441.0,68434.0,0.37688207]
[1771706411125,0.30436278,68449.0,68438.0,0.014615]
[1771706411126,0.014614,68447.0,68438.0,0.014615]
[1771706411317,0.014613,68449.0,68438.0,0.014616]
[1771706411533,0.014613,68449.0,68440.0,0.014615]
[1771706411534,0.00017533,68448.0,68440.0,0.014615]
[1771706411734,0.014614,68447.0,68441.0,0.014615]
[1771706412132,0.01478933,68448.0,68439.0,0.39149707]
[1771706412344,0.014614,68446.0,68440.0,0.014615]
[1771706412532,0.01478933,68448.0,68440.0,0.4529065]
[1771706412835,0.014616,68437.0,68432.0,0.014617]
[1771706413038,0.014616,68436.0,68431.0,0.37688207]
[1771706413236,0.014616,68438.0,68432.0,0.014617]
[1771706415443,0.014615,68439.0,68432.0,0.014617]
[1771706418147,0.014615,68439.0,68433.0,0.014617]
[1771706418348,0.014615,68443.0,68433.0,0.014617]
[1771706418646,0.014615,68440.0,68433.0,0.014617]
[1771706419642,0.014615,68440.0,68431.0,0.37688207]
[1771706419843,0.014615,68440.0,68420.0,0.014619]
[1771706419844,0.014616,68436.0,68429.0,0.014617]
[1771706420139,0.01475165,68435.0,68429.0,0.014617]
[1771706420545,0.00013565,68435.0,68430.0,0.014617]
[1771706420942,0.014615,68443.0,68436.0,0.014616]
[1771706421143,0.014615,68443.0,68432.0,0.39149907]
[1771706421446,0.014614,68445.0,68436.0,0.014616]
[1771706421638,0.014614,68446.0,68436.0,0.014616]
[1771706421848,0.014615,68443.0,68436.0,0.029232]
[1771706422245,0.014615,68443.0,68437.0,0.014616]
[1771706422745,0.014615,68443.0,68420.0,0.0569208]
[1771706422746,0.014613,68451.0,68443.0,0.014615]
[1771706422947,0.014613,68449.0,68443.0,0.014615]
[1771706423144,0.014613,68451.0,68443.0,0.014615]
[1771706424348,0.0569208,68460.0,68446.0,0.014614]
[1771706424553,0.24309498,68466.0,68448.0,0.014613]
[1771706424744,0.0569208,68460.0,68443.0,0.37688207]
[1771706426448,0.28439283,68468.0,68443.0,0.37688207]
[1771706426449,0.2505686,68466.0,68443.0,0.39149707]
[1771706426656,0.28761586,68452.0,68399.0,2.05949454]
[1771706426840,0.014622,68409.0,68403.0,0.014623]
[1771706427046,0.0569208,68420.0,68403.0,0.00092]
[1771706427351,0.0569208,68413.0,68398.0,0.37688207]
[1771706427650,0.0569208,68430.0,68417.0,0.01462]
[1771706427841,0.00016955,68429.0,68404.0,0.37688207]
[1771706428046,0.00016955,68429.0,68414.0,0.014621]
[1771706428241,0.001,68420.0,68415.0,0.014621]
[1771706428746,0.014619,68421.0,68413.0,0.029242]
[1771706429446,0.014619,68421.0,68414.0,0.014621]
[1771706430253,0.01462,68420.0,68413.0,0.014621]
[1771706430452,0.01462,68419.0,68413.0,0.014621]
[1771706430755,0.29818495,68415.0,68388.0,0.37688207]
[1771706430958,0.014622,68408.0,68392.0,0.014625]
[1771706431145,0.34393028,68407.0,68392.0,0.014625]
[1771706431347,0.00018249,68407.0,68401.0,0.014624]
[1771706431546,0.014623,68406.0,68400.0,0.014624]
[1771706431741,0.014622,68406.0,68399.0,0.014624]
[1771706432147,0.014623,68405.0,68397.0,0.014624]
[1771706432348,0.014623,68404.0,68398.0,0.014624]
[1771706432746,0.01480449,68407.0,68388.0,0.001]
[1771706432747,0.014624,68397.0,68388.0,0.001]
[1771706432942,0.014624,68400.0,68393.0,0.014625]
[1771706433147,0.014624,68400.0,68392.0,0.014625]
[1771706433452,0.014624,68397.0,68391.0,0.014626]
[1771706433748,0.014624,68397.0,68383.0,0.014627]
[1771706433953,0.6732779,68420.0,68390.0,0.014626]
[1771706433954,0.0147324,68396.0,68390.0,0.014626]
[1771706434162,0.014625,68395.0,68389.0,0.014626]
[1771706434350,0.014625,68394.0,68388.0,0.014626]
[1771706435357,0.014624,68400.0,68395.0,0.014625]
[1771706435548,0.014624,68402.0,68395.0,0.014625]
[1771706435744,0.3292243,68401.0,68395.0,0.014625]
[1771706435944,0.014624,68402.0,68395.0,0.014625]
[1771706436145,0.3292243,68401.0,68395.0,0.014625]
[1771706436345,0.32931637,68400.0,68395.0,0.014625]
[1771706436658,9.207e-05,68400.0,68395.0,0.014625]
[1771706437253,0.3292243,68399.0,68391.0,0.014626]
[1771706437454,0.01471607,68400.0,68394.0,0.014625]
[1771706437648,0.014625,68397.0,68390.0,0.014626]
[1771706437853,9.207e-05,68400.0,68395.0,0.014625]
[1771706438054,0.3292243,68399.0,68394.0,0.014625]
[1771706438361,0.32924205,68398.0,68394.0,0.014625]
[1771706438560,0.32924205,68397.0,68394.0,0.014625]
[1771706438764,0.014624,68399.0,68394.0,0.014625]
[1771706439056,0.014625,68396.0,68393.0,0.0008326]
[1771706439257,0.014624,68399.0,68390.0,0.014626]
[1771706439462,0.32924205,68398.0,68390.0,0.014626]
[1771706439661,0.32924205,68397.0,68392.0,0.014625]
[1771706439850,9.207e-05,68400.0,68389.0,0.014626]
[1771706440054,0.014625,68396.0,68389.0,0.014626]
[1771706440258,0.014625,68396.0,68381.0,0.37775773]
[1771706440259,0.28605109,68386.0,68360.0,0.49448891]
[1771706440457,7e-08,68385.0,68384.0,0.014627]
[1771706440650,0.014625,68393.0,68385.0,0.014627]
[1771706440854,0.014624,68401.0,68383.0,0.49448891]
[1771706441149,0.014624,68400.0,68393.0,0.014625]
[1771706441354,0.014624,68400.0,68390.0,0.014626]
[1771706441355,0.014624,68399.0,68392.0,0.014625]
[1771706441550,0.014624,68398.0,68392.0,0.014625]
[1771706442049,0.014624,68398.0,68389.0,0.014626]
[1771706442050,0.014625,68395.0,68389.0,0.014626]
[1771706442455,0.001,68393.0,68388.0,0.014626]
[1771706442861,0.014626,68392.0,68386.0,0.014627]
[1771706443065,0.015575,68393.0,68386.0,0.014627]
[1771706443359,0.014625,68394.0,68388.0,0.014626]
[1771706443662,0.014625,68394.0,68387.0,0.014627]
[1771706443862,0.014625,68396.0,68389.0,0.014626]
[1771706444463,0.014625,68395.0,68389.0,0.014626]
[1771706445163,0.014624,68399.0,68382.0,0.014628]
[1771706445364,0.029252,68392.0,68385.0,0.014627]
[1771706445666,0.014626,68391.0,68385.0,0.014627]
[1771706445864,0.014626,68392.0,68383.0,0.014627]
[1771706446059,0.014626,68392.0,68385.0,0.014627]
[1771706446364,0.014626,68391.0,68386.0,0.014627]
[1771706446862,0.014624,68397.0,68388.0,0.014626]
[1771706446863,0.014625,68396.0,68388.0,0.014626]
[1771706447061,0.014625,68393.0,68383.0,0.014627]
[1771706447364,0.014626,68390.0,68384.0,0.014627]
[1771706447754,0.014625,68393.0,68387.0,0.014626]
[1771706447957,0.014625,68394.0,68388.0,0.014626]
[1771706448156,0.014625,68395.0,68388.0,0.014626]
[1771706448665,0.014625,68393.0,68388.0,0.014626]
[1771706449263,0.014626,68390.0,68384.0,0.014627]
[1771706449467,0.014626,68390.0,68385.0,0.014627]
[1771706449666,0.014626,68390.0,68385.0,0.029253]
[1771706449854,0.014626,68391.0,68385.0,0.029253]
[1771706450461,0.014626,68391.0,68385.0,0.014627]
[1771706450764,0.014626,68391.0,68385.0,0.029253]
[1771706451266,0.014625,68395.0,68385.0,0.014626]
[1771706451464,0.014626,68390.0,68385.0,0.014627]
[1771706451859,0.014626,68392.0,68386.0,0.014627]
[1771706452060,0.014626,68391.0,68386.0,0.014627]
[1771706452263,0.014626,68392.0,68387.0,0.014626]
[1771706452761,0.014625,68393.0,68388.0,0.014626]
[1771706452962,0.014625,68396.0,68389.0,0.014626]
[1771706453162,0.32925695,68395.0,68391.0,0.014626]
[1771706453362,9.5e-07,68394.0,68393.0,0.014625]
[1771706453660,0.014625,68395.0,68390.0,0.014626]
[1771706453867,0.014625,68395.0,68390.0,0.029252]
[1771706454263,0.01479365,68400.0,68383.0,0.014627]
[1771706454472,0.01479365,68400.0,68393.0,0.014625]
[1771706454669,0.014625,68397.0,68391.0,0.014626]
[1771706454871,0.014625,68396.0,68390.0,0.014626]
[1771706455070,0.014625,68396.0,68391.0,0.014626]
[1771706455363,0.014624,68398.0,68372.0,0.01463]
[1771706455568,0.014625,68394.0,68389.0,0.014626]
[1771706455768,0.014625,68393.0,68388.0,0.014626]
[1771706455972,0.014625,68394.0,68389.0,0.014626]
[1771706456270,0.014625,68395.0,68388.0,0.014626]
[1771706456568,0.02925,68394.0,68389.0,0.014626]
[1771706456767,0.014625,68393.0,68386.0,0.014626]
[1771706456968,0.014625,68393.0,68388.0,0.014626]
[1771706457866,0.014626,68392.0,68388.0,0.014626]
[1771706458374,0.00016965,68400.0,68389.0,0.014626]
[1771706458665,0.014625,68396.0,68391.0,0.014626]
[1771706458861,0.014624,68399.0,68391.0,0.014626]
[1771706459064,0.014624,68398.0,68393.0,0.014625]
[1771706459667,0.014624,68397.0,68393.0,0.014625]
[1771706460470,0.00016965,68400.0,68393.0,0.014625]
[1771706460673,0.01479365,68400.0,68395.0,0.014625]
[1771706460873,0.029248,68399.0,68394.0,0.014625]
[1771706461165,0.014624,68399.0,68393.0,0.014625]
[1771706461365,0.014624,68399.0,68394.0,0.014625]
[1771706462071,0.01479365,68400.0,68395.0,0.014625]
[1771706462268,0.014621,68414.0,68398.0,0.014624]
[1771706462462,0.014623,68404.0,68394.0,0.014625]
[1771706462667,0.014623,68404.0,68399.0,0.014624]
[1771706462861,0.014622,68409.0,68395.0,0.014625]
[1771706463076,0.014623,68406.0,68401.0,0.014624]
[1771706463266,0.55977881,68416.0,68398.0,0.014624]
[1771706463472,0.014623,68403.0,68397.0,0.014624]
[1771706463672,0.014624,68401.0,68396.0,0.029251]
[1771706463969,0.014623,68403.0,68396.0,0.014626]
[1771706464170,0.014623,68403.0,68396.0,0.029251]
[1771706464171,0.014624,68402.0,68396.0,0.029251]
[1771706464364,0.01468988,68405.0,68399.0,0.014624]
[1771706464673,0.014621,68414.0,68399.0,0.014624]
[1771706464872,0.014621,68414.0,68399.0,0.02925]
[1771706465078,0.014623,68406.0,68401.0,0.014624]
[1771706465376,0.014622,68410.0,68402.0,0.014626]
[1771706465377,0.014622,68409.0,68402.0,0.014626]
[1771706465574,0.014622,68410.0,68402.0,0.014626]
[1771706465770,0.014621,68414.0,68402.0,0.014626]
[1771706466673,0.014623,68405.0,68402.0,0.014626]
[1771706466864,0.014621,68413.0,68402.0,0.014626]
[1771706467978,0.014623,68404.0,68402.0,0.014626]
[1771706468671,0.014623,68405.0,68402.0,0.014626]
[1771706468973,0.014623,68404.0,68402.0,0.014626]
[1771706469163,0.014622,68407.0,68402.0,0.014626]
[1771706469369,0.014622,68407.0,68402.0,0.029249]
[1771706470067,0.014622,68406.0,68402.0,0.014626]
[1771706470269,0.014622,68410.0,68402.0,0.014626]
[1771706470471,0.014623,68406.0,68402.0,0.014626]
[1771706471475,0.014623,68405.0,68402.0,0.014626]
[1771706472077,0.014623,68405.0,68400.0,0.014624]
[1771706472283,0.014623,68405.0,68401.0,0.014626]
[1771706472777,0.014623,68404.0,68401.0,0.014626]
[1771706473576,0.014623,68403.0,68401.0,0.014626]
[1771706474369,0.014625,68397.0,68391.0,0.014626]
[1771706474578,0.014625,68393.0,68387.0,0.014627]
[1771706474878,0.014625,68394.0,68387.0,0.014627]
[1771706475078,0.014625,68393.0,68388.0,0.014626]
[1771706475283,0.014625,68395.0,68386.0,0.014627]
[1771706475480,0.014625,68393.0,68387.0,0.014626]
[1771706475679,0.02925,68393.0,68387.0,0.014626]
[1771706475876,0.014626,68391.0,68386.0,0.014627]
[1771706476072,0.34364479,68407.0,68379.0,0.53291073]
[1771706476273,0.014626,68389.0,68384.0,0.014627]
[1771706476578,0.014626,68390.0,68385.0,0.014627]
[1771706477477,0.014626,68390.0,68386.0,0.014627]
[1771706477977,0.014626,68390.0,68385.0,0.014627]
[1771706478178,0.014626,68390.0,68380.0,0.014628]
[1771706478179,0.014625,68395.0,68389.0,0.014626]
[1771706478483,0.28878983,68394.0,68389.0,0.014626]
[1771706478781,0.014625,68395.0,68390.0,0.014626]
[1771706479077,0.014625,68396.0,68391.0,0.014626]
[1771706479384,0.014625,68396.0,68390.0,0.014626]
[1771706479783,0.014625,68395.0,68390.0,0.014626]
[1771706480082,0.014625,68396.0,68391.0,0.014626]
[1771706481183,0.02925,68396.0,68390.0,0.014626]
[1771706481378,0.014625,68396.0,68390.0,0.014626]
[1771706481886,0.014625,68396.0,68391.0,0.014626]
[1771706483281,0.014625,68396.0,68390.0,0.014626]
[1771706483883,0.014624,68399.0,68384.0,0.014627]
[1771706484083,0.014626,68391.0,68385.0,0.014627]
[1771706484382,0.029252,68391.0,68385.0,0.014627]
[1771706484685,0.014626,68391.0,68386.0,0.014627]
[1771706485478,0.014625,68392.0,68387.0,0.014627]
[1771706486391,0.029251,68392.0,68386.0,0.014627]
[1771706486788,0.014626,68391.0,68386.0,0.014627]
[1771706490293,0.014625,68396.0,68382.0,0.014628]
[1771706490488,0.014625,68396.0,68382.0,0.54753873]
[1771706490678,0.014624,68401.0,68395.0,0.014625]
[1771706490879,0.014624,68397.0,68391.0,0.014626]
[1771706491084,0.014624,68397.0,68392.0,0.014625]
[1771706491487,0.014625,68396.0,68390.0,0.014626]
[1771706491690,0.014625,68396.0,68391.0,0.014626]
[1771706492493,0.014625,68395.0,68389.0,0.014626]
[1771706493692,0.014625,68395.0,68389.0,0.029252]
[1771706494093,0.014625,68395.0,68389.0,0.014626]
[1771706494794,0.014625,68395.0,68389.0,0.029252]
[1771706495193,0.014625,68395.0,68390.0,0.014626]
[1771706495393,0.014625,68396.0,68390.0,0.014626]
[1771706495597,0.014624,68398.0,68392.0,0.014625]
[1771706495894,0.014624,68397.0,68392.0,0.014625]
[1771706496795,0.014624,68397.0,68391.0,0.014626]
[1771706497394,0.014624,68397.0,68392.0,0.014625]
[1771706499499,0.014624,68397.0,68391.0,0.014626]
[1771706503302,0.014624,68400.0,68395.0,0.014625]
[1771706503701,0.014624,68400.0,68394.0,0.014625]
[1771706503902,0.014624,68399.0,68394.0,0.014625]
[1771706505405,0.014624,68400.0,68394.0,0.014625]
[1771706505599,0.014624,68400.0,68395.0,0.014625]
[1771706506601,0.014624,68400.0,68394.0,0.014625]
[1771706507005,0.014624,68400.0,68394.0,0.02925]
[1771706507205,0.014624,68400.0,68394.0,0.014625]
[1771706508909,0.014624,68400.0,68394.0,0.02925]
[1771706510010,0.014624,68401.0,68394.0,0.02925]
[1771706510210,0.014622,68407.0,68397.0,0.014624]
[1771706510509,0.014623,68404.0,68398.0,0.014624]
[1771706510709,0.014623,68404.0,68397.0,0.014624]
[1771706510710,0.2334055,68403.0,68397.0,0.014624]
[1771706510910,0.014623,68404.0,68397.0,0.014624]
[1771706511105,0.014623,68402.0,68395.0,0.014625]
[1771706511510,0.014623,68402.0,68396.0,0.014625]
[1771706511708,0.014623,68403.0,68396.0,0.014625]
[1771706511908,0.014623,68403.0,68397.0,0.014624]
[1771706512510,0.014624,68399.0,68393.0,0.014625]
[1771706512712,0.014624,68400.0,68393.0,0.02925]
[1771706512914,0.014624,68400.0,68393.0,0.014625]
[1771706513116,0.014624,68400.0,68394.0,0.014625]
[1771706513517,0.014624,68399.0,68392.0,0.014625]
[1771706513723,0.014624,68401.0,68394.0,0.014625]
[1771706514223,0.029247,68402.0,68395.0,0.014625]
[1771706514424,0.014623,68404.0,68393.0,0.014625]
[1771706514827,0.014623,68403.0,68396.0,0.014624]
[1771706515726,0.014623,68402.0,68396.0,0.014624]
[1771706516829,0.014623,68404.0,68395.0,0.014625]
[1771706517031,0.014623,68404.0,68397.0,0.029248]
[1771706517230,0.014623,68404.0,68397.0,0.014624]
[1771706517526,0.014623,68406.0,68398.0,0.014624]
[1771706517830,0.014623,68404.0,68398.0,0.014624]
[1771706518825,0.014622,68410.0,68399.0,0.014624]
[1771706519032,0.014622,68410.0,68398.0,0.014624]
[1771706519033,0.014622,68408.0,68400.0,0.014624]
[1771706519928,0.014622,68407.0,68397.0,0.014624]
[1771706520231,0.014623,68405.0,68398.0,0.014624]
[1771706521225,0.014623,68405.0,68394.0,0.53810879]
[1771706521226,0.014623,68406.0,68399.0,0.029248]
[1771706521628,0.014623,68406.0,68400.0,0.014624]
[1771706522836,0.014622,68410.0,68400.0,0.014624]
[1771706523531,0.014622,68407.0,68400.0,0.014624]
[1771706529132,0.014622,68407.0,68399.0,0.014624]
[1771706529640,0.014623,68406.0,68399.0,0.014624]
[1771706531731,0.014623,68405.0,68398.0,0.014624]
[1771706531929,0.014623,68405.0,68399.0,0.014624]
[1771706533948,0.014623,68406.0,68399.0,0.014624]
[1771706535048,0.014623,68406.0,68400.0,0.00084]
[1771706535238,0.014623,68406.0,68399.0,0.014624]
[1771706535741,0.014622,68410.0,68399.0,0.014624]
[1771706535942,0.014623,68406.0,68399.0,0.014624]
[1771706536447,0.014623,68406.0,68399.0,0.029248]
[1771706537150,0.014622,68408.0,68400.0,0.014624]
[1771706537342,0.014622,68407.0,68400.0,0.014624]
[1771706537846,0.014622,68410.0,68401.0,0.014624]
[1771706538151,0.029244,68410.0,68403.0,0.014623]
[1771706538346,0.014622,68410.0,68403.0,0.014623]
[1771706540050,0.014622,68408.0,68401.0,0.014624]
[1771706541046,0.014622,68408.0,68402.0,0.00088]
[1771706541350,0.014622,68408.0,68401.0,0.014624]
[1771706541553,0.014622,68409.0,68402.0,0.014623]
[1771706542554,0.014622,68409.0,68400.0,0.014624]
[1771706542749,0.014622,68408.0,68400.0,0.014624]
[1771706543353,0.014622,68408.0,68401.0,0.014623]
[1771706545654,0.014622,68408.0,68402.0,0.014623]
[1771706548958,0.014622,68409.0,68402.0,0.014623]
[1771706552958,0.3253787,68419.0,68387.0,0.47383971]
[1771706553263,1.00587052,68425.0,68380.0,0.17114898]
[1771706553264,0.014624,68400.0,68393.0,0.014625]
[1771706553455,0.014624,68399.0,68393.0,0.014625]
[1771706554158,0.014624,68402.0,68394.0,0.014625]
[1771706554364,0.014623,68405.0,68399.0,0.014624]
[1771706554555,0.014621,68415.0,68400.0,0.014624]
[1771706554757,0.014623,68406.0,68399.0,0.014624]
[1771706556172,0.014622,68407.0,68400.0,0.014624]
[1771706556468,0.014622,68407.0,68401.0,0.014623]
[1771706556868,0.014622,68407.0,68400.0,0.014624]
[1771706557864,0.014622,68408.0,68401.0,0.014623]
[1771706558064,0.014622,68407.0,68401.0,0.014623]
[1771706559870,0.014623,68406.0,68399.0,0.014624]
[1771706560472,0.014623,68406.0,68399.0,0.029248]
[1771706560671,0.014623,68406.0,68400.0,0.014624]
[1771706561070,0.014623,68406.0,68399.0,0.014624]
[1771706561372,0.014623,68406.0,68400.0,0.014624]
[1771706563396,0.014623,68406.0,68390.0,0.014626]
[1771706563397,0.31409981,68405.0,68378.0,0.909916]
[1771706563587,0.24726961,68418.0,68397.0,0.014624]
[1771706563588,0.014621,68412.0,68397.0,0.014624]
[1771706563783,0.029246,68403.0,68397.0,0.014624]
[1771706564089,0.014623,68402.0,68396.0,0.014625]
[1771706564283,0.014623,68404.0,68398.0,0.014624]
[1771706564481,0.014623,68403.0,68398.0,0.014624]
[1771706565078,0.014623,68403.0,68397.0,0.014624]
[1771706568993,0.014623,68402.0,68396.0,0.014625]
[1771706569193,0.014623,68403.0,68397.0,0.014624]
[1771706569687,0.014624,68401.0,68395.0,0.014625]
[1771706569896,0.014624,68401.0,68396.0,0.014625]
[1771706570492,0.014623,68402.0,68396.0,0.014625]
[1771706573398,0.014623,68402.0,68396.0,0.029249]
[1771706573799,0.014623,68402.0,68396.0,0.014624]
[1771706574398,0.014623,68402.0,68396.0,0.029248]
[1771706574891,0.014623,68402.0,68396.0,0.014624]
[1771706579406,0.014624,68401.0,68396.0,0.014624]
[1771706581100,0.014624,68400.0,68395.0,0.014625]
[1771706581305,0.014624,68400.0,68394.0,0.014625]
[1771706581814,0.014624,68400.0,68395.0,0.014625]
[1771706584310,0.014624,68400.0,68394.0,0.014625]
[1771706584509,0.014624,68400.0,68382.0,0.014628]
[1771706584709,0.014626,68389.0,68383.0,0.014627]
[1771706584910,0.014626,68390.0,68382.0,0.029255]
[1771706585213,0.014626,68391.0,68385.0,0.014627]
[1771706588017,0.014626,68390.0,68385.0,0.014627]
[1771706590018,0.014626,68391.0,68385.0,0.014627]
[1771706591118,0.014625,68394.0,68384.0,0.014627]
[1771706591319,0.014625,68393.0,68386.0,0.014627]
[1771706591820,0.014625,68393.0,68386.0,0.029254]
[1771706592013,0.014625,68393.0,68387.0,0.014627]
[1771706593122,0.014625,68394.0,68388.0,0.014626]
[1771706593422,0.014625,68394.0,68387.0,0.014627]
[1771706594318,0.014625,68396.0,68389.0,0.014626]
[1771706594518,0.28308277,68406.0,68384.0,0.014627]
[1771706594821,0.014625,68393.0,68386.0,0.014627]
[1771706596024,0.014625,68394.0,68387.0,0.014627]
[1771706597220,0.014626,68390.0,68382.0,0.014627]
[1771706597419,0.014626,68390.0,68383.0,0.014627]
[1771706597823,0.014626,68389.0,68383.0,0.014627]
[1771706598024,0.014626,68390.0,68383.0,0.014627]
[1771706598530,0.014626,68391.0,68384.0,0.014627]
[1771706601930,0.014626,68392.0,68384.0,0.029254]
[1771706602434,0.014626,68392.0,68385.0,0.014627]
[1771706602737,0.014625,68393.0,68385.0,0.014627]
[1771706602942,0.014625,68394.0,68386.0,0.014627]
[1771706603437,0.014625,68393.0,68386.0,0.014627]
[1771706603934,0.014625,68394.0,68386.0,0.014627]
[1771706604430,0.014625,68394.0,68386.0,0.029254]
[1771706604632,0.014625,68394.0,68387.0,0.014627]
[1771706605038,0.014624,68397.0,68390.0,0.014626]
[1771706605941,0.014624,68398.0,68391.0,0.014626]
[1771706606142,0.014624,68400.0,68392.0,0.014625]
[1771706606342,0.014624,68399.0,68392.0,0.014625]
[1771706606546,0.014624,68398.0,68390.0,0.014626]
[1771706607037,0.014624,68398.0,68392.0,0.0008]
[1771706607237,0.014624,68398.0,68390.0,0.014626]
[1771706607647,0.014624,68399.0,68391.0,0.014626]
[1771706607846,0.014624,68400.0,68392.0,0.014625]
[1771706610236,0.014624,68401.0,68393.0,0.014625]
[1771706610438,0.014623,68405.0,68397.0,0.014624]
[1771706610642,0.014623,68405.0,68396.0,0.014625]
[1771706611055,0.014623,68404.0,68396.0,0.014625]
[1771706611553,0.014623,68402.0,68393.0,0.014625]
[1771706612255,0.014623,68402.0,68394.0,0.014625]
[1771706613051,0.014623,68402.0,68396.0,0.00092]
[1771706613258,0.014623,68402.0,68394.0,0.014625]
[1771706613645,0.014624,68401.0,68393.0,0.014625]
[1771706613845,0.014623,68402.0,68394.0,0.014625]
[1771706615255,0.014623,68403.0,68395.0,0.014625]
[1771706615558,0.014623,68405.0,68393.0,0.014625]
[1771706615857,0.014623,68403.0,68394.0,0.014625]
[1771706616056,0.014623,68404.0,68395.0,0.014625]
[1771706616552,0.014623,68405.0,68395.0,0.014625]
[1771706616753,0.029246,68404.0,68396.0,0.014625]
[1771706616950,0.029246,68404.0,68394.0,0.014625]
[1771706616951,0.014623,68404.0,68392.0,0.014625]
[1771706617148,0.014623,68403.0,68396.0,0.014625]
[1771706618850,0.014624,68401.0,68394.0,0.014625]
[1771706619158,0.014623,68402.0,68395.0,0.014625]
[1771706619859,0.014623,68403.0,68395.0,0.02925]
[1771706620060,0.014623,68403.0,68396.0,0.014625]
[1771706620657,0.014623,68403.0,68395.0,0.014625]
[1771706620855,0.014623,68402.0,68394.0,0.014625]
[1771706621056,0.014623,68402.0,68395.0,0.014625]
[1771706622463,0.014623,68404.0,68395.0,0.014625]
[1771706623362,0.014623,68404.0,68396.0,0.014625]
[1771706623962,0.014623,68404.0,68395.0,0.014625]
[1771706625256,0.014623,68406.0,68397.0,0.014624]
[1771706625556,0.21798587,68405.0,68400.0,0.014624]
[1771706625760,0.014622,68408.0,68400.0,0.014624]
[1771706625960,0.029244,68410.0,68400.0,0.014624]
[1771706626158,0.21800048,68409.0,68400.0,0.014624]
[1771706626356,0.014622,68409.0,68400.0,0.014624]
[1771706626555,0.014622,68408.0,68400.0,0.014624]
[1771706629653,0.029244,68408.0,68400.0,0.014624]
[1771706630055,0.014622,68407.0,68400.0,0.014624]
[1771706638062,0.014622,68407.0,68398.0,0.014624]
[1771706638063,0.014623,68405.0,68398.0,0.014624]
[1771706639770,0.2432653,68414.0,68393.0,0.014625]
[1771706639958,0.014624,68402.0,68394.0,0.014625]
[1771706640163,0.014624,68402.0,68395.0,0.014625]
[1771706641569,0.014623,68403.0,68396.0,0.014625]
[1771706646673,0.014623,68405.0,68398.0,0.014624]
[1771706651269,0.014623,68404.0,68395.0,0.014625]
[1771706651469,0.014623,68405.0,68397.0,0.014624]
[1771706651777,0.014622,68407.0,68400.0,0.014624]
[1771706652874,0.014622,68407.0,68400.0,0.029248]
[1771706653771,0.014622,68407.0,68400.0,0.014624]
[1771706653976,0.014622,68407.0,68400.0,0.029248]
[1771706654271,0.014622,68408.0,68401.0,0.014623]
[1771706655069,0.014622,68408.0,68402.0,0.00084]
[1771706655270,0.014622,68408.0,68401.0,0.014623]
[1771706656679,0.014622,68409.0,68402.0,0.014623]
[1771706657881,0.014622,68410.0,68402.0,0.029246]
[1771706658083,0.029244,68410.0,68402.0,0.014623]
[1771706658680,0.014622,68409.0,68402.0,0.014623]
[1771706665088,0.014622,68409.0,68401.0,0.014623]
[1771706666699,0.014622,68407.0,68401.0,0.014623]
[1771706667498,0.029244,68407.0,68401.0,0.014623]
[1771706668100,0.014622,68407.0,68401.0,0.014623]
[1771706670296,0.0570348,68420.0,68401.0,0.014623]
[1771706670297,0.20357393,68429.0,68401.0,0.42324091]
[1771706670504,0.014621,68416.0,68410.0,0.014621]
[1771706670902,0.01462,68420.0,68413.0,0.014621]
[1771706671097,0.02924,68420.0,68413.0,0.014621]
[1771706671301,0.01462,68419.0,68413.0,0.014621]
[1771706671897,0.01462,68418.0,68412.0,0.014621]
[1771706674005,0.01462,68419.0,68412.0,0.014621]
[1771706674408,0.01462,68420.0,68413.0,0.014621]
[1771706674607,0.01462,68420.0,68412.0,0.014621]
[1771706674808,0.01462,68419.0,68412.0,0.014621]
[1771706675002,0.01462,68418.0,68412.0,0.014621]
[1771706676104,0.014619,68422.0,68413.0,0.014621]
[1771706676300,0.01462,68419.0,68411.0,0.014621]
[1771706676506,0.01462,68418.0,68412.0,0.014621]
[1771706676909,0.01462,68419.0,68413.0,0.014621]
[1771706677510,0.014619,68421.0,68415.0,0.014621]
[1771706677907,0.014619,68423.0,68416.0,0.02924]
[1771706678213,0.014618,68427.0,68416.0,0.42061349]
[1771706679007,0.014618,68427.0,68418.0,0.01462]
[1771706679307,0.014619,68425.0,68418.0,0.01462]
[1771706679915,0.014619,68424.0,68418.0,0.01462]
[1771706681314,0.014618,68426.0,68418.0,0.01462]
[1771706682511,0.014618,68425.0,68418.0,0.01462]
[1771706683516,0.014618,68426.0,68418.0,0.01462]
[1771706684215,0.014619,68425.0,68418.0,0.01462]
[1771706684816,0.014618,68426.0,68419.0,0.01462]
[1771706686621,0.014618,68428.0,68420.0,0.014619]
[1771706688317,0.014618,68428.0,68416.0,0.42061349]
[1771706688318,0.014618,68429.0,68421.0,0.014619]
[1771706691927,0.01534766,68431.0,68422.0,0.014619]
[1771706692318,0.014617,68430.0,68422.0,0.014619]
[1771706692719,0.014618,68429.0,68422.0,0.014619]
[1771706693519,0.014617,68430.0,68422.0,0.014619]